bitfinex-derivatives/quotes_ETHF0:USTF0_20250214
["timestamp","ask_amount","ask_price","bid_price","bid_amount"]
[1739529562863,0.00366651,2709.7,2709.3,1.1516]
[1739529563268,0.00366651,2709.7,2709.6,0.738]
[1739529563269,0.74165651,2709.7,2709.6,0.738]
[1739529563673,0.73801,2709.6,2709.5,0.73801]
[1739529563872,0.00366651,2709.7,2709.3,1.1516]
[1739529564074,0.73802,2709.6,2709.5,0.738]
[1739529564279,0.74165651,2709.7,2709.6,0.738]
[1739529564484,0.00366651,2709.7,2709.6,0.738]
[1739529565483,0.00366651,2709.7,2709.6,1.3059]
[1739529571186,0.74164651,2709.7,2709.6,1.3059]
[1739529571379,0.74164651,2709.7,2709.6,0.5679]
[1739529571580,0.74164651,2709.7,2709.6,1.3059]
[1739529571884,0.00366651,2709.7,2709.6,1.3059]
[1739529572185,0.74164651,2709.7,2709.6,1.3059]
[1739529573288,0.00366651,2709.7,2709.6,1.3059]
[1739529574393,0.74164651,2709.7,2709.6,1.3059]
[1739529574687,0.00366651,2709.7,2709.6,1.3059]
[1739529575288,0.74164651,2709.7,2709.6,1.3059]
[1739529576289,0.00366651,2709.7,2709.6,1.3059]
[1739529576683,0.74164651,2709.7,2709.6,1.3059]
[1739529576880,0.74164651,2709.7,2709.6,0.5679]
[1739529577284,0.74164651,2709.7,2709.6,1.3059]
[1739529579997,0.74164651,2709.7,2709.6,0.5679]
[1739529580584,0.00366651,2709.7,2709.4,3.94584]
[1739529580893,0.73803,2709.5,2709.4,3.94584]
[1739529581092,0.73802,2709.6,2709.5,0.73801]
[1739529582293,0.73802,2709.6,2709.5,0.738]
[1739529582486,0.74167651,2709.7,2709.6,0.738]
[1739529583994,0.00366651,2709.7,2709.4,3.2078]
[1739529584183,0.74166651,2709.7,2709.6,0.738]
[1739529584584,0.00366651,2709.7,2709.4,3.2078]
[1739529584789,0.73803,2709.6,2709.5,0.73802]
[1739529589093,0.74164651,2709.7,2709.6,0.738]
[1739529589995,0.00366651,2709.7,2709.4,3.2078]
[1739529590305,0.73801,2709.6,2709.5,0.73802]
[1739529590596,0.74166651,2709.7,2709.6,0.738]
[1739529591598,0.00366651,2709.7,2709.6,0.738]
[1739529591998,0.74164651,2709.7,2709.6,0.738]
[1739529593092,0.00366651,2709.7,2709.6,0.738]
[1739529593792,0.00366651,2709.7,2709.4,3.2078]
[1739529594093,0.74165651,2709.7,2709.6,0.738]
[1739529595802,0.00366651,2709.7,2709.6,0.738]
[1739529596897,0.74164651,2709.7,2709.6,0.738]
[1739529597199,0.00366651,2709.7,2709.6,0.738]
[1739529598803,0.00366651,2709.7,2709.6,1.29640757]
[1739529601505,0.00366651,2709.7,2709.6,4.50420757]
[1739529606506,0.00366651,2709.7,2709.6,3.9458]
[1739529610508,0.00366651,2709.7,2709.6,4.4995]
[1739529612312,0.73761,2711.1,2709.7,1.8449]
[1739529612512,5.43982743,2711.3,2710.5,3.2078]
[1739529612513,0.5609,2711.0,2710.5,3.2078]
[1739529612814,0.5609,2711.0,2710.8,0.73765]
[1739529612815,1.29853,2711.0,2710.8,0.73765]
[1739529613206,0.5609,2711.0,2710.6,1.7125]
[1739529613518,0.73766,2710.9,2710.7,0.73768]
[1739529614217,0.5609,2711.0,2710.6,1.71803618]
[1739529614511,1.29854,2711.0,2710.7,0.73769]
[1739529614705,1.29854,2711.0,2710.6,1.71803618]
[1739529614908,0.5609,2711.0,2710.8,0.73768]
[1739529615110,1.29853,2711.0,2710.8,0.73768]
[1739529615413,0.5609,2711.0,2710.8,0.73766]
[1739529616121,0.5609,2711.0,2710.6,1.71803618]
[1739529616319,1.33285,2711.3,2711.0,0.7376]
[1739529616522,0.5953,2711.3,2710.8,3.2078]
[1739529616818,1.33285,2711.3,2711.0,2.96963743]
[1739529617019,1.33285,2711.3,2711.1,0.5549]
[1739529617222,1.33285,2711.3,2711.1,1.86329]
[1739529617607,0.5953,2711.3,2711.2,3.94537]
[1739529618010,0.5953,2711.3,2711.1,1.1257]
[1739529618215,0.5801,2711.5,2711.2,0.73757]
[1739529618423,1.3176,2711.5,2711.3,0.73752]
[1739529619113,0.73752,2711.4,2711.2,0.73755]
[1739529619513,1.3176,2711.5,2711.2,0.73755]
[1739529619713,0.5801,2711.5,2711.1,1.1257]
[1739529619912,0.73755,2711.3,2711.1,1.1257]
[1739529620313,0.73755,2711.3,2711.1,1.86328]
[1739529621221,0.5801,2711.5,2711.1,1.1257]
[1739529621421,0.73757,2711.2,2711.1,1.1257]
[1739529621719,0.73764,2711.0,2710.8,1.32647]
[1739529621922,2.43693,2711.4,2710.8,0.5888]
[1739529622124,0.73764,2711.0,2710.8,0.73767]
[1739529622821,0.73764,2711.0,2710.8,0.73768]
[1739529623526,1.8439,2711.3,2710.7,4.06171743]
[1739529623724,1.84393,2711.2,2710.6,3.95105618]
[1739529624018,0.7377,2710.7,2710.6,3.95105618]
[1739529624515,0.73769,2710.8,2710.6,3.95105618]
[1739529624919,1.1415,2711.1,2710.6,3.21333618]
[1739529625122,0.7377,2710.7,2710.6,3.95106618]
[1739529625325,0.73769,2710.8,2710.6,3.95106618]
[1739529625623,0.7377,2710.7,2710.6,3.95106618]
[1739529625825,1.1415,2711.1,2710.6,3.95106618]
[1739529626225,1.1415,2711.1,2710.6,3.21333618]
[1739529626425,0.7377,2710.8,2710.6,3.95105618]
[1739529626828,1.1415,2711.1,2710.6,3.95105618]
[1739529627124,0.7377,2710.7,2710.6,3.95105618]
[1739529627323,0.73769,2710.8,2710.6,3.95105618]
[1739529627521,1.1415,2711.1,2710.6,3.95105618]
[1739529627725,0.7377,2710.7,2710.6,3.21333618]
[1739529628225,0.73769,2710.8,2710.6,3.95105618]
[1739529628620,0.7377,2710.7,2710.6,3.21333618]
[1739529628821,1.3222,2710.7,2710.6,3.21333618]
[1739529629020,1.3222,2710.7,2710.6,0.00553618]
[1739529637031,4.53,2710.7,2710.6,0.00553618]
[1739529637228,0.73787,2710.1,2710.0,4.305]
[1739529637528,0.73787,2710.1,2710.0,3.7486]
[1739529638130,0.73787,2710.1,2709.9,0.5866]
[1739529638131,0.73789,2710.0,2709.9,0.5866]
[1739529638828,0.73792,2709.9,2709.8,0.00553618]
[1739529649741,0.73792,2710.0,2709.9,0.7379]
[1739529649940,0.73792,2710.0,2709.9,1.8591]
[1739529650444,0.73792,2710.0,2709.9,1.1212]
[1739529650938,0.73792,2710.0,2709.9,1.85912]
[1739529651134,0.73792,2710.0,2709.9,1.1212]
[1739529653843,0.73792,2710.0,2709.9,1.85912]
[1739529656537,0.73789,2710.1,2710.0,0.73786]
[1739529657842,0.00553618,2710.3,2710.2,0.73784]
[1739529658039,0.74334618,2710.3,2710.2,0.73784]
[1739529658242,0.00553618,2710.3,2710.2,0.73784]
[1739529668340,0.00553618,2710.3,2710.2,1.28194]
[1739529668741,1.29739,2711.2,2711.0,0.7376]
[1739529668946,1.29739,2711.2,2710.8,5.43982743]
[1739529668947,0.73758,2711.2,2710.8,5.43982743]
[1739529669255,3.2078,2711.4,2710.8,5.43982743]
[1739529669547,3.94533,2711.4,2711.2,0.73755]
[1739529669746,3.94533,2711.4,2711.3,1.1873]
[1739529669949,0.5598,2711.5,2711.3,1.1873]
[1739529670258,0.73751,2711.4,2711.3,1.1873]
[1739529670448,0.73751,2711.4,2711.3,1.7279]
[1739529672143,0.73751,2711.4,2711.3,2.46544]
[1739529672351,0.73751,2711.4,2711.3,1.7279]
[1739529673065,0.73751,2711.4,2711.3,2.46544]
[1739529673444,0.73751,2711.4,2711.3,1.7279]
[1739529673649,0.7375,2711.5,2711.3,1.7279]
[1739529673849,0.587,2711.6,2711.3,1.7279]
[1739529674054,0.73751,2711.4,2711.3,1.7279]
[1739529674559,0.73751,2711.4,2711.3,2.46544]
[1739529674758,0.73751,2711.4,2711.3,1.7279]
[1739529675559,0.73751,2711.4,2711.3,0.5925]
[1739529676151,0.587,2711.6,2711.1,0.00553618]
[1739529676456,0.73757,2711.2,2711.1,0.74312618]
[1739529676854,0.73757,2711.2,2711.1,0.00553618]
[1739529679464,5.53137,2711.2,2711.1,0.00553618]
[1739529682662,0.73777,2710.5,2710.3,3.2078]
[1739529682868,0.73777,2710.5,2710.4,1.90438]
[1739529683173,0.73776,2710.5,2710.4,1.1666]
[1739529683662,0.73787,2710.1,2710.0,3.2078]
[1739529684472,6.24103743,2710.4,2709.8,0.00553618]
[1739529684670,0.73792,2709.9,2709.8,0.74348618]
[1739529684966,2.1645,2710.4,2709.8,0.00553618]
[1739529685169,2.1645,2710.4,2710.1,0.73784]
[1739529685170,0.73783,2710.3,2710.1,0.73784]
[1739529685469,3.2078,2710.5,2710.4,0.73779]
[1739529685767,0.00553618,2710.7,2710.6,0.73773]
[1739529687366,0.00553618,2710.7,2710.5,2.23202743]
[1739529687670,0.00553618,2710.7,2710.6,0.73773]
[1739529688558,0.00553618,2710.7,2710.6,3.94553]
[1739529697272,0.74323618,2710.7,2710.6,3.94553]
[1739529697465,0.00553618,2710.7,2710.6,3.94553]
[1739529700282,0.7378,2710.4,2710.3,3.9456]
[1739529700679,0.7378,2710.4,2710.3,3.2078]
[1739529701378,0.7378,2710.4,2710.2,1.7305]
[1739529701379,0.73781,2710.3,2710.2,1.1633]
[1739529701581,0.73787,2710.1,2710.0,3.803]
[1739529701777,1.8444,2710.5,2710.0,4.54089]
[1739529701778,0.73786,2710.2,2710.0,4.54089]
[1739529702678,2.98487,2710.6,2710.0,4.54089]
[1739529703079,0.73787,2710.1,2710.0,3.803]
[1739529703777,0.73787,2710.1,2710.0,3.2078]
[1739529704586,3.7564,2710.4,2710.0,3.2078]
[1739529704775,3.7564,2710.4,2710.0,3.94567]
[1739529705082,0.73787,2710.1,2710.0,3.2078]
[1739529705276,0.73787,2710.1,2710.0,3.94569]
[1739529705478,0.73787,2710.1,2710.0,3.2078]
[1739529705784,0.73787,2710.1,2710.0,3.94569]
[1739529705973,0.73787,2710.1,2710.0,3.2078]
[1739529706777,3.7564,2710.4,2710.0,3.2078]
[1739529707287,3.2078,2710.4,2710.2,0.73782]
[1739529707485,0.73779,2710.4,2710.3,0.5827]
[1739529709282,1.1405,2710.6,2710.3,0.5827]
[1739529709482,1.87824,2710.6,2710.5,0.73776]
[1739529709682,4.80033618,2710.7,2710.3,0.5827]
[1739529709982,4.80033618,2710.7,2710.4,0.5728]
[1739529710189,3.21333618,2710.7,2710.4,1.31056]
[1739529710491,0.73775,2710.6,2710.5,0.73775]
[1739529711887,3.21333618,2710.7,2710.6,0.73773]
[1739529712080,3.95103618,2710.7,2710.6,0.73773]
[1739529713082,3.21333618,2710.7,2710.6,0.73773]
[1739529713691,3.21333618,2710.7,2710.4,0.5728]
[1739529713887,0.00553618,2710.7,2710.6,0.73773]
[1739529714288,0.74323618,2710.7,2710.6,0.73773]
[1739529714693,0.00553618,2710.7,2710.4,0.5728]
[1739529714885,0.00553618,2710.7,2710.6,0.73773]
[1739529715084,0.74323618,2710.7,2710.6,0.73773]
[1739529715286,0.74325618,2710.7,2710.6,0.73773]
[1739529715480,0.00553618,2710.7,2710.6,0.73773]
[1739529715685,0.00553618,2710.7,2710.6,3.2078]
[1739529715984,0.00553618,2710.7,2710.6,3.94553]
[1739529716488,0.00553618,2710.7,2710.6,4.50213]
[1739529717286,0.00553618,2710.7,2710.6,5.05883709]
[1739529717494,0.00553618,2710.7,2710.6,4.50213]
[1739529718686,0.00553618,2710.7,2710.6,5.07186799]
[1739529718995,0.00553618,2710.7,2710.6,5.62843449]
[1739529719995,0.5771,2711.3,2710.6,4.89070449]
[1739529720189,0.73754,2711.3,2711.2,0.73757]
[1739529720401,0.73754,2711.3,2711.0,3.2078]
[1739529720697,0.73754,2711.3,2711.1,1.85497]
[1739529720891,0.73754,2711.3,2711.2,0.73757]
[1739529721197,0.5778,2711.5,2710.7,3.2078]
[1739529721198,1.84379,2711.4,2710.7,3.2078]
[1739529721401,3.2078,2711.0,2710.6,1.85512]
[1739529721693,3.2078,2711.0,2710.8,0.73768]
[1739529721893,0.73765,2710.9,2710.8,0.73768]
[1739529722097,3.2078,2711.0,2710.6,1.1174]
[1739529722291,3.94543,2711.0,2710.8,0.73766]
[1739529722491,0.73765,2710.9,2710.8,0.73768]
[1739529722799,0.73769,2710.8,2710.5,2.78252743]
[1739529723093,0.73772,2710.7,2710.5,1.28824]
[1739529723292,1.29152,2710.7,2710.5,1.28824]
[1739529723598,0.5538,2710.7,2710.6,0.73773]
[1739529724101,0.73766,2710.9,2710.5,2.78252743]
[1739529724301,0.73766,2710.9,2710.7,0.73768]
[1739529725494,0.73765,2710.9,2710.7,0.73768]
[1739529726289,0.73769,2710.8,2710.7,0.7377]
[1739529726498,3.7616,2711.0,2710.6,1.87452]
[1739529726499,0.7377,2710.7,2710.6,1.87452]
[1739529727591,0.7377,2710.7,2710.6,1.1368]
[1739529727895,0.7377,2710.7,2710.6,0.73773]
[1739529728592,3.7616,2711.0,2710.6,0.73773]
[1739529728896,0.7377,2710.7,2710.6,0.73773]
[1739529729500,3.7616,2711.0,2710.7,0.73769]
[1739529729796,0.73768,2710.8,2710.7,0.73769]
[1739529730391,0.73771,2710.7,2710.6,0.73772]
[1739529730596,3.7616,2711.0,2710.5,3.34292743]
[1739529730797,0.73769,2710.8,2710.7,0.7377]
[1739529731695,3.7616,2711.0,2710.5,3.34292743]
[1739529731998,0.73771,2710.7,2710.6,0.73772]
[1739529732401,0.73769,2710.8,2710.7,0.73769]
[1739529732893,0.5538,2711.0,2710.5,3.34292743]
[1739529733295,0.73769,2710.8,2710.7,0.73769]
[1739529736400,0.5538,2711.0,2710.5,6.55072743]
[1739529736697,0.73771,2710.7,2710.6,0.73771]
[1739529737796,0.7377,2710.8,2710.7,0.73769]
[1739529738995,0.5538,2711.0,2710.5,6.55072743]
[1739529739197,0.73772,2710.7,2710.6,0.73771]
[1739529742307,0.5538,2711.0,2710.5,3.34292743]
[1739529742499,0.5538,2711.0,2710.5,6.55072743]
[1739529742702,0.5538,2711.0,2710.9,0.73765]
[1739529743210,1.29142,2711.0,2710.9,1.88125]
[1739529743404,0.5538,2711.0,2710.9,1.88125]
[1739529743705,0.5538,2711.0,2710.5,2.23202743]
[1739529743896,0.73772,2710.7,2710.6,0.73771]
[1739529744101,0.73772,2710.7,2710.6,1.29575789]
[1739529744300,0.543,2710.8,2710.6,0.55804789]
[1739529744605,1.2807,2710.8,2710.7,0.7377]
[1739529745808,1.28069,2710.8,2710.7,0.7377]
[1739529746309,0.543,2710.8,2710.5,2.23202743]
[1739529746709,1.2807,2710.8,2710.7,0.7377]
[1739529747110,1.2807,2710.8,2710.6,0.5581432]
[1739529747111,0.7377,2710.7,2710.6,1.2958532]
[1739529747512,0.543,2710.8,2710.6,0.5581432]
[1739529747712,1.28069,2710.8,2710.7,0.7377]
[1739529748123,0.543,2710.8,2710.5,2.23202743]
[1739529748520,1.28069,2710.8,2710.7,0.7377]
[1739529749623,0.543,2710.8,2710.5,2.23202743]
[1739529749822,0.73771,2710.7,2710.6,0.73771]
[1739529750119,0.543,2710.8,2710.3,1.1436]
[1739529750324,5.59502,2710.8,2710.3,1.88139]
[1739529750526,0.73778,2710.5,2710.4,0.73778]
[1739529751120,3.7508,2710.8,2710.3,1.1436]
[1739529751326,0.73775,2710.6,2710.5,0.73775]
[1739529754126,3.7508,2710.8,2710.3,1.1436]
[1739529754432,0.73779,2710.4,2710.3,1.88139]
[1739529754628,1.28977,2710.5,2710.4,0.73779]
[1739529757529,1.28976,2710.5,2710.4,0.73779]
[1739529757727,0.552,2710.5,2710.4,0.73779]
[1739529758830,1.28976,2710.5,2710.4,0.73779]
[1739529759130,0.73779,2710.4,2710.3,1.88139]
[1739529759727,0.73779,2710.4,2710.3,0.5883]
[1739529759930,1.5731161,2710.4,2709.9,1.6061161]
[1739529760130,0.73789,2710.0,2709.9,2.9395261]
[1739529760325,0.5428,2710.3,2709.9,2.2016161]
[1739529760540,0.73789,2710.0,2709.9,3.49737219]
[1739529760829,0.5428,2710.3,2709.9,2.75947219]
[1739529761029,0.73785,2710.2,2710.1,1.7673761]
[1739529761633,0.73785,2710.2,2710.1,0.73786]
[1739529762124,0.5428,2710.3,2709.9,1.1721]
[1739529762327,0.73782,2710.3,2710.2,0.73784]
[1739529763037,0.7378,2710.4,2710.3,0.73781]
[1739529763639,0.73782,2710.3,2710.2,0.73782]
[1739529764027,0.73785,2710.2,2710.1,0.73786]
[1739529764334,5.60422,2710.5,2710.0,0.73787]
[1739529764535,0.73786,2710.2,2709.9,0.5766]
[1739529764737,0.73786,2710.2,2710.1,0.73787]
[1739529765127,0.73787,2710.1,2710.0,0.73788]
[1739529765330,0.5929,2710.3,2709.9,0.5766]
[1739529765528,0.73786,2710.2,2710.1,0.73787]
[1739529766031,0.73786,2710.2,2709.9,0.5766]
[1739529766236,0.5929,2710.3,2709.9,0.5766]
[1739529766636,0.73784,2710.2,2710.0,0.73787]
[1739529766839,0.73787,2710.1,2710.0,0.73787]
[1739529767132,0.73787,2710.1,2710.0,0.73788]
[1739529769832,0.5929,2710.3,2709.9,0.5766]
[1739529770036,0.73787,2710.2,2710.1,0.73787]
[1739529770942,0.73788,2710.1,2710.0,0.73788]
[1739529771343,0.73788,2710.1,2710.0,0.73789]
[1739529771746,0.73789,2710.0,2709.9,0.5766]
[1739529772945,0.73789,2710.0,2709.9,1.31452]
[1739529773148,0.73789,2710.0,2709.9,0.5766]
[1739529773449,0.73789,2710.0,2709.9,1.31452]
[1739529774343,0.73789,2710.0,2709.9,0.5766]
[1739529774544,0.73789,2710.0,2709.9,1.31452]
[1739529775443,0.5823,2710.1,2709.8,0.00553618]
[1739529775646,0.73792,2709.9,2709.8,0.00553618]
[1739529776348,1.30272,2709.9,2709.8,0.00553618]
[1739529784755,0.73792,2710.0,2709.9,0.7379]
[1739529784955,0.73792,2710.0,2709.9,1.3139]
[1739529785153,0.73792,2710.0,2709.9,1.8832]
[1739529785355,0.73789,2710.1,2710.0,0.73788]
[1739529785659,3.2078,2710.2,2709.9,1.1453]
[1739529785858,0.73789,2710.0,2709.9,1.8832]
[1739529786057,0.73789,2710.0,2709.9,1.1453]
[1739529788056,0.73789,2710.0,2709.9,1.88322]
[1739529788254,0.73789,2710.0,2709.9,1.1453]
[1739529789758,1.57089705,2710.1,2709.8,1.03543323]
[1739529789961,0.73792,2709.9,2709.8,0.00553618]
[1739529790463,4.97561705,2709.9,2709.8,0.00553618]
[1739529791465,3.94572,2709.9,2709.8,0.00553618]
[1739529791967,3.94572,2709.9,2709.8,1.03543323]
[1739529792463,3.2078,2709.9,2709.8,1.77338323]
[1739529793662,3.2078,2709.9,2709.8,0.74348618]
[1739529794065,0.73791,2710.0,2709.8,0.00553618]
[1739529794269,0.73791,2710.0,2709.9,0.73792]
[1739529795265,0.73791,2710.0,2709.8,0.00553618]
[1739529795266,0.73788,2710.1,2710.0,0.73789]
[1739529796665,3.2078,2710.2,2709.8,0.00553618]
[1739529796875,0.73792,2709.9,2709.8,0.00553618]
[1739529797080,0.73792,2709.9,2709.8,0.74348618]
[1739529797379,0.7379,2710.0,2709.9,0.73791]
[1739529797578,0.73788,2710.1,2710.0,0.73789]
[1739529798178,0.7379,2710.0,2709.9,0.73791]
[1739529798475,0.7379,2710.0,2709.9,0.73792]
[1739529798677,0.7379,2710.0,2709.9,1.29597474]
[1739529799178,0.7379,2710.0,2709.9,0.73792]
[1739529799581,0.7379,2710.0,2709.9,1.29252]
[1739529799879,0.7379,2710.0,2709.9,0.5546]
[1739529800580,0.7379,2710.0,2709.9,1.29252]
[1739529801079,0.7379,2710.0,2709.9,0.5546]
[1739529802081,1.8294,2710.0,2709.9,0.5546]
[1739529803677,0.73792,2709.9,2709.8,0.00553618]
[1739529814891,3.94572,2709.9,2709.8,0.00553618]
[1739529816183,5.53172,2709.9,2709.8,0.00553618]
[1739529821889,7.76387708,2709.9,2709.8,0.00553618]
[1739529826994,3.94572,2709.9,2709.8,0.00553618]
[1739529827196,5.53172,2709.9,2709.8,0.00553618]
[1739529828793,3.94572,2709.9,2709.8,0.00553618]
[1739529828999,3.94572,2709.9,2709.8,0.74348618]
[1739529829397,0.73792,2709.9,2709.8,0.74348618]
[1739529829697,3.2078,2710.2,2710.1,0.73787]
[1739529829997,3.94564,2710.2,2710.1,0.73787]
[1739529830197,3.2078,2710.9,2710.1,3.2078]
[1739529830503,0.7377,2710.8,2710.5,0.73773]
[1739529830802,0.7377,2710.8,2710.6,0.561]
[1739529831300,3.2078,2710.9,2710.6,0.561]
[1739529831503,0.7377,2710.8,2710.6,0.561]
[1739529832003,3.94547,2710.9,2710.6,1.29872]
[1739529832196,3.2078,2710.9,2710.7,0.7377]
[1739529832395,0.73765,2710.9,2710.8,1.1409]
[1739529833000,0.73764,2711.0,2710.8,1.1409]
[1739529833201,0.73765,2710.9,2710.8,1.1409]
[1739529833997,3.94538,2711.2,2710.9,0.73764]
[1739529834304,0.73761,2711.1,2710.8,1.87857]
[1739529834500,0.73765,2711.0,2710.8,1.1409]
[1739529835101,3.2078,2711.2,2710.8,1.1409]
[1739529835302,0.73764,2711.0,2710.8,1.1409]
[1739529835901,3.2078,2711.2,2710.8,1.1409]
[1739529836109,0.73764,2711.0,2710.8,1.1409]
[1739529836306,0.73764,2711.0,2710.8,1.87857]
[1739529836909,0.73764,2711.0,2710.8,1.1409]
[1739529837106,0.73764,2711.0,2710.8,1.87857]
[1739529838906,0.73762,2711.0,2710.8,1.87856]
[1739529839305,0.73762,2711.0,2710.8,1.1409]
[1739529839509,0.73762,2711.0,2710.8,1.87856]
[1739529839909,0.73762,2711.0,2710.9,0.73765]
[1739529840111,3.2078,2711.2,2710.9,0.73765]
[1739529840302,0.73759,2711.1,2711.0,0.5641]
[1739529849111,3.2078,2711.2,2710.4,4.7928]
[1739529849407,0.73776,2710.6,2710.5,0.5515]
[1739529850707,1.3205,2710.8,2710.7,0.7377]
[1739529850912,0.73772,2710.7,2710.6,0.73772]
[1739529851411,0.5828,2710.8,2710.5,1.87465]
[1739529851412,0.73773,2710.6,2710.5,1.87465]
[1739529852015,0.73773,2710.6,2710.5,1.1369]
[1739529852312,0.73773,2710.6,2710.5,1.87466]
[1739529853412,0.73772,2710.7,2710.5,1.1369]
[1739529853811,0.73772,2710.7,2710.6,0.73773]
[1739529854715,0.73773,2710.6,2710.5,1.87464]
[1739529856115,0.73772,2710.7,2710.6,0.73772]
[1739529856510,0.5828,2710.8,2710.5,1.1369]
[1739529856817,0.73771,2710.7,2710.6,0.73771]
[1739529858018,0.5828,2710.8,2710.5,1.1369]
[1739529858214,0.73773,2710.6,2710.5,1.87464]
[1739529858615,0.73773,2710.6,2710.5,1.87465]
[1739529858816,1.30232,2710.7,2710.6,0.73773]
[1739529860519,0.73773,2710.6,2710.5,2.31862045]
[1739529861618,1.30232,2710.7,2710.6,0.73773]
[1739529862919,0.5828,2710.8,2710.5,1.58088045]
[1739529863122,0.5828,2710.8,2710.7,1.76708045]
[1739529863321,1.32048,2710.8,2710.7,1.76708045]
[1739529863915,0.5828,2710.8,2710.7,1.76708045]
[1739529864522,3.4924,2711.1,2710.7,1.02938045]
[1739529864726,3.6536,2711.1,2711.0,1.76700045]
[1739529865612,2.916,2711.1,2711.0,1.76700045]
[1739529868130,3.94537,2711.2,2711.1,0.73759]
[1739529868518,0.73759,2711.1,2711.0,1.02938045]
[1739529868715,3.2078,2711.2,2711.0,1.02938045]
[1739529868915,3.94539,2711.2,2711.1,0.73759]
[1739529869319,3.2078,2711.2,2711.1,0.73759]
[1739529869825,3.94537,2711.2,2711.1,0.73759]
[1739529870623,3.2078,2711.2,2711.1,0.73759]
[1739529871127,3.2078,2711.2,2711.1,1.29515605]
[1739529872126,3.2078,2711.5,2711.4,0.73751]
[1739529872324,3.2078,2711.5,2711.4,1.76689045]
[1739529873416,3.2078,2711.5,2711.4,2.35779045]
[1739529874337,3.2078,2711.5,2711.4,1.32841]
[1739529877127,3.94529,2711.5,2711.4,1.32841]
[1739529878129,3.2078,2711.5,2711.3,0.5753]
[1739529878330,0.73751,2711.4,2711.3,0.5753]
[1739529878924,0.73751,2711.4,2711.3,1.31284]
[1739529879723,3.9453,2711.5,2711.4,0.73751]
[1739529880329,3.94529,2711.5,2711.4,0.73751]
[1739529880730,3.94529,2711.5,2711.3,0.5753]
[1739529880932,3.94529,2711.5,2711.4,0.73751]
[1739529881124,3.2078,2711.5,2711.3,0.5753]
[1739529881323,0.73751,2711.4,2711.3,0.5753]
[1739529882027,3.2078,2711.5,2711.3,0.5753]
[1739529882228,0.73751,2711.4,2711.3,1.31282]
[1739529882427,0.74027951,2711.4,2711.3,1.31282]
[1739529885332,0.74027951,2711.4,2711.3,0.5753]
[1739529885525,0.74027951,2711.4,2711.3,1.31284]
[1739529886034,0.74027951,2711.4,2711.3,0.5753]
[1739529886535,0.73754,2711.3,2711.2,0.00553618]
[1739529886728,1.82774,2711.3,2711.2,0.00553618]
[1739529894230,1.82774,2711.3,2711.2,0.74310618]
[1739529895839,1.82774,2711.3,2711.2,0.00553618]
[1739529896043,1.82774,2711.3,2711.2,0.74310618]
[1739529896737,2.41444,2711.3,2711.2,0.00553618]
[1739529897533,2.41444,2711.3,2711.2,0.74310618]
[1739529898543,2.41444,2711.3,2711.2,0.00553618]
[1739529900545,2.41444,2711.3,2711.2,0.74310618]
[1739529901140,1.87124,2711.3,2711.2,0.74310618]
[1739529901335,1.1337,2711.3,2711.2,0.74310618]
[1739529901643,0.5867,2711.3,2711.2,0.74310618]
[1739529902737,0.00276951,2711.4,2711.3,0.73754]
[1739529902944,0.00276951,2711.4,2711.3,1.87324]
[1739529903148,0.00276951,2711.4,2711.3,2.36199756]
[1739529903344,0.00276951,2711.4,2711.3,2.93321747]
[1739529903744,0.00276951,2711.4,2711.3,6.14101747]
[1739529903949,4.80896719,2712.1,2711.5,1.84369]
[1739529904143,4.80896719,2712.1,2712.0,0.73735]
[1739529904343,4.80896719,2712.1,2711.8,1.02896719]
[1739529904546,4.80896719,2712.1,2712.0,0.73735]
[1739529904747,5.54629719,2712.1,2711.9,1.86506]
[1739529905048,4.80896719,2712.1,2711.9,1.1277]
[1739529905237,5.54629719,2712.1,2711.9,1.86506]
[1739529905662,3.78,2712.1,2712.0,0.73735]
[1739529906745,3.78,2712.1,2711.9,1.1277]
[1739529906946,3.78,2712.1,2712.0,0.73735]
[1739529907149,0.73735,2712.0,2711.9,1.1277]
[1739529907352,0.73735,2712.0,2711.9,0.5604]
[1739529907552,3.78,2712.1,2711.6,1.1134]
[1739529907750,0.73742,2711.8,2711.7,0.5671]
[1739529907953,0.73748,2711.6,2711.4,0.73751]
[1739529908153,0.73749,2711.5,2711.3,1.85132]
[1739529908354,0.73748,2711.6,2711.4,0.73751]
[1739529908547,0.7375,2711.5,2711.3,1.85132]
[1739529909248,0.5919,2711.6,2711.3,1.1138]
[1739529909553,0.5919,2711.6,2711.3,0.5671]
[1739529909756,0.73754,2711.3,2711.2,0.00553618]
[1739529911147,0.73753,2711.4,2711.2,0.74309618]
[1739529911347,3.2078,2711.5,2711.2,0.74309618]
[1739529911548,0.73754,2711.3,2711.2,0.74309618]
[1739529912152,0.73754,2711.3,2711.2,0.00553618]
[1739529912349,0.73754,2711.3,2711.2,0.74310618]
[1739529912649,0.73754,2711.3,2711.2,0.00553618]
[1739529913159,0.73754,2711.3,2711.2,0.74310618]
[1739529913750,3.2078,2711.4,2711.2,0.74310618]
[1739529913952,3.94533,2711.4,2711.2,0.74310618]
[1739529914552,0.73754,2711.3,2711.2,0.74309618]
[1739529916061,3.94534,2711.4,2711.2,0.74309618]
[1739529916262,3.2078,2711.4,2711.3,0.73754]
[1739529916464,3.94531,2711.4,2711.3,0.73754]
[1739529916761,0.73754,2711.3,2711.2,0.74308618]
[1739529916965,3.94533,2711.4,2711.3,0.73754]
[1739529917362,3.2078,2711.4,2711.3,0.73754]
[1739529917859,3.94531,2711.4,2711.3,0.73754]
[1739529919156,44.74531,2711.4,2711.3,0.73754]
[1739529919361,44.74531,2711.4,2711.2,0.00553618]
[1739529919362,0.73754,2711.3,2711.2,0.74308618]
[1739529919765,3.2078,2711.4,2711.2,0.00553618]
[1739529920068,3.94533,2711.4,2711.3,0.73754]